[Event "European Women-ch 2023"]
[Site "Petrovac"]
[Date "2023.03.23"]
[Round "6.13"]
[White "Unuk, Laura"]
[Black "Milliet, Sophie"]
[Result "1-0"]
[ECO "D00"]
[WhiteElo "2297"]
[BlackElo "2404"]
[Annotator "TA"]
[PlyCount "139"]
[EventDate "2023.03.15"]
[EventType "swiss"]
[EventCountry "MNE"]
[SourceTitle "playchess.com"]
[Source "ChessBase"]
[SourceQuality "1"]
[TimeControl "40/5400+30:1800+30"]

{[%evp 9,139,-5,-8,-11,20,15,50,45,71,82,73,44,41,47,63,22,45,58,52,10,70,75,77,84,77,77,108,68,72,76,94,77,81,0,0,0,33,20,25,0,27,27,34,15,21,18,33,34,33,25,45,39,41,37,40,0,118,126,120,118,119,111,136,136,192,0,181,183,170,172,170,141,170,83,118,56,277,258,343,334,387,387,381,389,350,370,391,386,553,551,540,530,649,636,613,574,523,512,647,637,918,932,842,632,598,440,916,918,890,838,2227,2075,2641,2558,2467,2279,2754,2156,29987,29988,29988,29985,29985,29984,29987,29988,29988,29989,29989,29990,29991,29992]} 1. d4 {[%emt 0:00:30]} d5 {[%emt 0:00:30]} 2. Bf4 {[%emt 0:00:30]} Nf6 {[%emt 0:00:30]} 3. Nc3 {[%emt 0:00:30]} e6 {[%emt 0:00:30]} 4. Nb5 {[%emt 0:00:30]} Na6 {[%emt 0:00:30]} 5. e3 {[%emt 0:00:30]} Be7 {[%emt 0:00:30]} 6. h4 {[%emt 0:00:30]} Ne4 {[%emt 0:00:30]} 7. Bd3 $1 {[%emt 0:00:30]} c6 {[%emt 0:00:30][%cal Bc7c6,Bc6b5,Bb5b4,Bb4a3][%mdl 32]} 8. Bxe4 {[%emt 0:00:30] White is slightly better.} cxb5 {[%emt 0:00:30]} 9. Bd3 {[%emt 1:48:15]} Qa5+ 10. c3 {[%emt 0:00:00]} b4 {[%emt 0:14:47]} 11. Ne2 {[%emt 0:00:00]} Bd7 {[%emt 0:00:58]} 12. h5 {[%emt 0:00:00]} (12. Be5 $5 {[%cal Re5g7]}) 12... Ba4 {[%emt 0:14:14]} 13. Qb1 {[%emt 0:00:00]} h6 $1 {[%emt 0:05:14]} 14. O-O {[%emt 0:00:00]} Bb5 {[%emt 0:00:58] [#]} (14... Rc8 $11) 15. a3 $1 $14 {[%emt 0:00:00]} bxa3 {[%emt 0:07:21] [#]} 16. b4 $1 {[%emt 0:00:00]} Bxd3 {[%emt 0:01:30]} 17. Qxd3 {[%emt 0:00:00]} Qa4 {[%emt 0:01:02]} 18. Ra2 {[%emt 0:00:00] White is more active.} O-O {[%emt 0:09:22][%cal Bh8f8,Bf8c8,Bc8c4][%mdl 32]} 19. Rfa1 {[%emt 0:00:00]} Rfc8 {[%emt 0:02:55][%cal Oe7b4]} 20. Rxa3 {[%emt 0:00:00]} Qd7 {[%emt 0:00:21]} 21. Ra5 {[%emt 0:09:57]} ({Better is} 21. e4 $16) 21... Bd8 $1 $11 {[%emt 0:01:32]} 22. R5a2 {[%emt 0:00:00]} Rc4 {[%emt 0:02:11]} 23. e4 {[%emt 0:00:00]} Rac8 {[%emt 0:07:46]} 24. Bd2 {[%emt 0:00:00]} dxe4 {[%emt 0:05:44]} 25. Qxe4 {[%emt 0:00:00]} Bb6 $1 {[%emt 0:01:03][%cal Oe6e5]} 26. Qf3 {[%emt 0:00:00]} Nc7 {[%emt 0:20:06]} 27. Qxb7 {[%emt 0:00:00]} Qd8 {[%emt 0:00:12]} 28. Qf3 $36 {[%emt 0:00:00][%mdl 2048] White is more active.} Nd5 {[%emt 0:00:03]} 29. Ra3 {[%emt 0:00:00]} Qc7 {[%emt 0:00:25]} 30. Re1 {[%emt 0:00:00]} Qc6 {[%emt 0:00:39]} 31. Qg3 {[%emt 0:00:00]} Bc7 {[%emt 0:00:50]} 32. Qf3 {[%emt 0:00:00]} Bb8 {[%emt 0:00:33]} (32... Bb6 $1 $11) 33. Ra5 {[%emt 0:00:00]} Qd6 {[%emt 0:01:21]} 34. g3 {[%emt 0:00:00]} Qc6 {[%emt 0:00:44][%cal Rd5c3]} 35. Qd3 {[%emt 0:00:00]} Nf6 {[%emt 0:00:40]} 36. Nc1 {[%emt 0:00:00]} Nd5 {[%emt 0:00:58]} (36... Bc7 $16) 37. Ne2 $2 {[%emt 0:00:00]} ({White should play} 37. Nb3 $18) 37... Ne7 $2 {[%emt 0:00:31]} (37... Nf6 $11 {and Black is okay.}) 38. Rc5 $18 {[%emt 0:00:00]} Rxc5 {[%emt 0:00:07]} 39. dxc5 {[%emt 0:00:00]} ({But not} 39. bxc5 Rd8 $16) 39... e5 {[%emt 0:00:14]} 40. Nc1 {[%emt 0:00:00]} Qe6 {[%emt 0:00:00] Prevents Nb3} 41. Be3 {[%emt 0:00:00]} (41. c4 $18 {has better winning chances.}) 41... e4 {[%emt 0:09:04]} 42. Qd1 {[%emt 0:00:04]} (42. Qd2 $16) 42... Qh3 $2 {[%emt 0:04:24] This costs Black the game.} (42... Nd5 $1 $14) 43. Ne2 {[%emt 0:04:58]} Nc6 {[%emt 0:07:33][%cal Ob8g3]} 44. Nf4 {[%emt 0:03:21]} Qf5 {[%emt 0:00:45]} 45. Qd5 {[%emt 0:00:41] Prevents Rd8} Qxd5 {[%emt 0:05:10]} 46. Nxd5 {[%emt 0:00:05] Strongly threatening b5.} Rd8 {[%emt 0:00:02]} 47. c4 {[%emt 0:03:46]} Kf8 {[%emt 0:00:22]} 48. Kg2 {[%emt 0:02:54]} f5 {[%emt 0:05:02]} (48... Ne5 $142 49. Bf4 Nxc4 50. Bxb8 (50. Rxe4 Bxf4 51. Nxf4 Na3 $18) 50... Rxb8 51. Rxe4 Na3) 49. b5 {[%emt 0:00:56]} Na5 {[%emt 0:00:39]} 50. c6 {[%emt 0:00:46]} Rc8 {[%emt 0:01:31]} 51. Rc1 {[%emt 0:03:16]} Kf7 {[%emt 0:01:16]} 52. Rc3 {[%emt 0:00:06]} Ke6 {[%emt 0:00:20]} 53. Nf4+ {[%emt 0:01:05]} Kd6 {[%emt 0:01:58]} 54. Bd4 {[%emt 0:00:19]} Rg8 {[%emt 0:00:27]} 55. c5+ {[%emt 0:00:59]} Ke7 {[%emt 0:00:00]} 56. Nd5+ {[%emt 0:00:16]} Ke6 {[%emt 0:00:06]} 57. Ne3 {[%emt 0:01:02]} f4 {[%emt 0:00:56]} (57... Bc7 $142 58. Ra3 Rb8) 58. gxf4 {[%emt 0:00:12]} Bxf4 {[%emt 0:00:01]} 59. Ra3 {[%emt 0:00:20]} Bxe3 {[%emt 0:00:44]} 60. fxe3 {[%emt 0:00:05][%mdl 4096] Endgame KRB-KRN} Nc4 {[%emt 0:00:07]} 61. Rxa7 {[%emt 0:00:11]} g6 {[%emt 0:00:05]} 62. hxg6 {[%emt 0:00:19] b6 is the strong threat.} Rxg6+ {[%emt 0:00:01]} 63. Kf2 {[%emt 0:00:09] aiming for Ra8.} Kd5 {[%emt 0:02:20]} 64. Rd7+ {[%emt 0:01:14] White mates.} Ke6 {[%emt 0:00:01]} 65. b6 {[%emt 0:00:19][%cal Bb5b6,Bb6b7][%mdl 32]} Rg8 {[%emt 0:00:04]} 66. b7 {[%emt 0:00:36]} Na5 {[%emt 0:00:24]} 67. Rd6+ {[%emt 0:00:05][%mdl 64] Skewer} Ke7 {[%emt 0:01:33]} 68. Bf6+ {[%emt 0:00:05]} Kf7 {[%emt 0:00:06]} 69. Bc3 {[%emt 0:00:23]} Nc4 {[%emt 0:00:39] [#]} 70. c7 $1 {[%emt 0:00:04] Weighted Error Value: White=0.27 (precise) /Black=0.35} 1-0

[Event "European Women-ch 2023"]
[Site "Petrovac"]
[Date "2023.03.23"]
[Round "6.13"]
[White "Lazarne Vajda, Szidonia"]
[Black "Zaksaite, Salomeja"]
[Result "1/2-1/2"]
[ECO "D77"]
[WhiteElo "2294"]
[BlackElo "2187"]
[Annotator "TA"]
[PlyCount "128"]
[EventDate "2023.03.15"]
[EventType "swiss"]
[EventCountry "MNE"]
[SourceTitle "playchess.com"]
[Source "ChessBase"]
[SourceQuality "1"]
[TimeControl "40/5400+30:1800+30"]

{[%evp 20,128,34,27,38,44,34,35,41,39,63,48,74,55,72,60,66,62,79,68,72,75,104,95,99,100,104,102,266,75,94,89,108,119,154,122,217,214,201,202,225,0,0,0,0,0,0,0,0,0,0,0,0,-7,6,7,41,33,92,97,93,90,96,98,158,63,61,72,71,70,70,39,39,37,37,37,37,37,38,38,40,33,33,7,8,7,8,8,14,15,31,31,31,0,0,0,8,0,0,0,0,0,0,0,8,0,0,0,8,8,8]} 1. d4 {[%emt 0:00:06]} Nf6 {[%emt 0:00:23]} 2. Nf3 {[%emt 0:00:39]} g6 {[%emt 0:00:09]} 3. g3 {[%emt 0:00:39]} d5 {[%emt 0:01:53]} 4. Bg2 {[%emt 0:00:46]} Bg7 {[%emt 0:00:05]} 5. O-O {[%emt 0:00:36]} O-O {[%emt 0:00:04]} 6. c4 {[%emt 0:00:53]} dxc4 {[%emt 0:00:09]} 7. Na3 {[%emt 0:00:24][%cal Bb1a3,Ba3c4,Bc4e3][%mdl 32]} Nc6 {[%emt 0:00:05]} 8. Nxc4 {[%emt 0:00:24]} Be6 {[%emt 0:00:06]} 9. b3 {[%emt 0:03:00]} Bd5 {[%emt 0:00:21]} 10. Bb2 {[%emt 0:00:24]} a5 {[%emt 0:00:07]} 11. Ne3 {[%emt 0:03:57]} Be4 {[%emt 0:00:25][%cal Oa5a4]} 12. a3 {[%emt 0:00:44]} Qc8 {[%emt 0:07:17]} 13. Nc4 {[%emt 0:02:08]} Rd8 {[%emt 0:00:51] White is slightly better.} 14. Rc1 {[%emt 0:04:26]} h6 {[%emt 0:03:00]} 15. e3 {[%emt 0:03:32]} Qe6 {[%emt 0:02:55]} 16. Qe2 {[%emt 0:02:52]} g5 {[%emt 0:01:19]} 17. Rfd1 {[%emt 0:06:06]} g4 {[%emt 0:05:04]} 18. Nh4 {[%emt 0:03:44]} h5 {[%emt 0:09:07]} 19. Nd2 {[%emt 0:14:12]} Bxg2 {[%emt 0:02:08]} 20. Nxg2 {[%emt 0:00:05]} Bh6 {[%emt 0:06:21][%cal Oc6d4]} 21. Qb5 {[%emt 0:05:04]} Rab8 {[%emt 0:03:46]} 22. Rc5 {[%emt 0:04:12]} Rd5 {[%emt 0:13:56]} 23. Rdc1 {[%emt 0:01:33]} Qd7 $2 {[%emt 0:10:16]} (23... Nd8 $16 {might work better.}) 24. Rxd5 $2 {[%emt 0:04:09]} (24. Ne4 $1 $18 {[%cal Re4f6] And now Nxf6+ would win.} Nxe4 25. Rxd5) 24... Qxd5 {[%emt 0:01:04]} 25. Rc5 {[%emt 0:01:27]} Qd8 {[%emt 0:05:18]} 26. Qd3 {[%emt 0:16:19] White is more active.} Qd7 {[%emt 0:05:29][%cal Oe7e5]} 27. Ne4 {[%emt 0:01:47]} Nd5 {[%emt 0:02:06]} (27... Nxe4 $16 28. Qxe4 e5) 28. Nc3 $18 {[%emt 0:00:14]} e6 {[%emt 0:03:55] [#]} 29. Nxd5 {[%emt 0:00:42]} exd5 {[%emt 0:00:05] [#]} 30. Nh4 $2 {[%emt 0:01:34]} (30. Qb5 $1 $18) 30... b6 $11 {[%emt 0:03:34]} 31. Rc2 {[%emt 0:02:15]} Ne7 {[%emt 0:00:11] Wards off Qf5} 32. a4 {[%emt 0:01:31]} Bg5 {[%emt 0:00:22] Strongly threatening ...Bxh4.} 33. Ng2 {[%emt 0:00:12]} b5 {[%emt 0:01:48]} 34. axb5 {[%emt 0:02:31]} Qxb5 {[%emt 0:00:05]} 35. Qxb5 {[%emt 0:01:46]} Rxb5 {[%emt 0:00:03]} 36. Bc3 {[%emt 0:00:11]} Rxb3 {[%emt 0:13:18] ...a4 is the strong threat.} 37. Bxa5 {[%emt 0:00:06]} c6 {[%emt 0:00:38]} 38. Ne1 {[%emt 0:00:47][%cal Oh2h3]} Rb1 {[%emt 0:00:39]} (38... h4 $14) 39. Kg2 {[%emt 0:00:47]} h4 {[%emt 0:01:02]} 40. gxh4 {[%emt 0:00:00]} Bxh4 {[%emt 0:00:00]} 41. Nd3 {[%emt 0:03:20]} f5 {[%emt 0:16:24]} (41... f6 $142) 42. Bb4 {[%emt 0:02:53]} (42. Bd8 $16) 42... f4 $14 {[%emt 0:01:35]} 43. exf4 {[%emt 0:01:35] Black must now prevent Bxe7.} Nf5 {[%emt 0:02:38]} 44. Rxc6 {[%emt 0:01:01]} Rd1 {[%emt 0:00:41]} 45. Ne5 {[%emt 0:13:46] Bc5 would be deadly.} Rxd4 {[%emt 0:01:00]} 46. Bc5 {[%emt 0:11:10]} Rxf4 {[%emt 0:01:59]} 47. Rg6+ {[%emt 0:00:07]} Kh7 {[%emt 0:00:25]} 48. Rxg4 {[%emt 0:00:04]} Rxg4+ {[%emt 0:00:32]} 49. Nxg4 {[%emt 0:00:05][%mdl 4096] Endgame KBN-KBN} Kg6 {[%emt 0:02:40]} 50. Ne3 {[%emt 0:02:31]} Nxe3+ {[%emt 0:01:59]} 51. fxe3 {[%emt 0:02:30] KB-KB} Kf5 {[%emt 0:00:08]} 52. Kf3 {[%emt 0:00:05]} Bd8 {[%emt 0:02:59]} 53. Bd6 {[%emt 0:00:08]} Bf6 {[%emt 0:00:16]} 54. Bg3 {[%emt 0:00:17]} Bd8 {[%emt 0:00:34]} 55. Be1 {[%emt 0:00:57]} Be7 {[%emt 0:00:09]} 56. h4 {[%emt 0:01:49]} Bd8 {[%emt 0:00:42] The position is equal.} 57. Bf2 {[%emt 0:01:14]} Be7 {[%emt 0:00:09]} 58. Kg3 {[%emt 0:00:13]} Bd8 {[%emt 0:00:30]} 59. Kh3 {[%emt 0:00:06]} Ba5 {[%emt 0:01:11]} 60. Kg3 {[%emt 0:01:34]} Bc7+ {[%emt 0:00:27]} 61. Kf3 {[%emt 0:00:55]} Bd8 {[%emt 0:02:00]} 62. Ke2 {[%emt 0:00:08]} Ke4 {[%emt 0:01:18]} 63. Bg3 {[%emt 0:00:41]} Bxh4 {[%emt 0:00:19]} 64. Bxh4 {[%emt 0:00:07] Intending Bf2 and mate.} d4 {[%emt 0:00:01] Blacks defense is rewarded with a draw.   Weighted Error Value: White=0.17 (very precise) /Black=0.14 (very precise)} 1/2-1/2

[Event "European Women-ch 2023"]
[Site "Petrovac"]
[Date "2023.03.23"]
[Round "6.13"]
[White "Bluebaum, Johanna"]
[Black "Petrova, Irina"]
[Result "1/2-1/2"]
[ECO "A41"]
[WhiteElo "1954"]
[BlackElo "2123"]
[Annotator "TA"]
[PlyCount "123"]
[EventDate "2023.03.15"]
[EventType "swiss"]
[EventCountry "MNE"]
[SourceTitle "playchess.com"]
[Source "ChessBase"]
[SourceQuality "1"]
[TimeControl "40/5400+30:1800+30"]

{[%evp 15,123,30,43,12,26,8,10,-8,-1,-15,27,-39,-15,-18,-4,-77,-68,-69,-55,-66,-38,-54,43,37,29,30,60,75,101,90,107,96,95,84,84,84,76,76,105,74,133,140,127,122,110,92,113,114,141,141,141,141,141,125,114,123,96,78,78,78,78,78,78,78,85,0,78,0,85,3,3,3,78,78,78,78,78,78,78,78,78,78,78,78,78,78,78,78,78,78,78,0,78,0,78,78,78,78,78,78,78,78,85,93,100,0,146,0,146,0]} 1. d4 {[%emt 0:00:18]} g6 {[%emt 0:00:12]} 2. c4 {[%emt 0:00:34]} Bg7 {[%emt 0:00:06]} 3. e4 {[%emt 0:00:51]} d6 {[%emt 0:00:42]} 4. Nf3 {[%emt 0:00:22]} Bg4 {[%emt 0:00:24]} 5. Be2 {[%emt 0:01:36]} Nc6 {[%emt 0:00:51]} 6. Be3 {[%emt 0:00:58]} e5 {[%emt 0:00:47]} 7. d5 {[%emt 0:02:51]} Bxf3 {[%emt 0:00:25]} 8. Bxf3 {[%emt 0:03:39]} Nd4 {[%emt 0:00:07]} 9. Nd2 {[%emt 0:02:19] A41: 1 d4 d6: Tartakower System and Modern Defence.} c5 {[%emt 0:01:19] [#]} 10. Qa4+ $146 {[%emt 0:02:45]} ({Predecessor:} 10. dxc6 bxc6 11. Bxd4 exd4 12. e5 Ne7 13. exd6 Qxd6 14. Ne4 Qc7 15. O-O O-O 16. Nc5 d3 17. Nxd3 Rad8 18. Rb1 Nf5 19. Re1 h5 20. Be2 Be5 21. h3 Bd4 22. Qc1 Bg7 {½-½ Brunello,S (2572)-Peralta,F (2617) Tata Steel-C 75th 2013 (3)}) 10... Qd7 {[%emt 0:01:21]} 11. Qxd7+ {[%emt 0:01:20] The position is equal.} Kxd7 {[%emt 0:00:06]} 12. Bd1 {[%emt 0:00:43] Repels Nc2+} f5 {[%emt 0:02:56]} 13. Bxd4 {[%emt 0:08:34]} (13. exf5 $11 gxf5 14. b4) 13... cxd4 $15 {[%emt 0:03:18]} 14. Bc2 {[%emt 0:04:41]} Ne7 {[%emt 0:04:26]} 15. O-O {[%emt 0:03:25]} (15. h4 $1 $11) 15... Bh6 {[%emt 0:02:20]} 16. Nb1 {[%emt 0:12:21][%cal Bd2b1,Bb1a3,Ba3c4][%mdl 32] White is weak on the dark squares} Rac8 {[%emt 0:04:17]} 17. Na3 {[%emt 0:01:19]} a6 {[%emt 0:03:00]} 18. f3 {[%emt 0:07:53] [#]} b5 {[%emt 0:06:41]} 19. cxb5 $14 {[%emt 0:01:54]} axb5 {[%emt 0:00:04]} 20. Bd3 {[%emt 0:00:13]} b4 {[%emt 0:00:40]} 21. Nc4 {[%emt 0:00:34]} Rb8 {[%emt 0:03:29] Inhibits Nb6+.} 22. a4 {[%emt 0:02:47]} Rhf8 {[%emt 0:10:26]} 23. b3 {[%emt 0:06:21]} Nc8 {[%emt 0:04:47]} 24. g4 {[%emt 0:03:14]} fxg4 {[%emt 0:03:24]} 25. fxg4 {[%emt 0:00:09][%cal Og4g5]} Bf4 {[%emt 0:00:16]} 26. a5 {[%emt 0:05:13] Prevents Nb6} Kc7 {[%emt 0:08:49]} 27. Ra4 {[%emt 0:02:25]} h5 {[%emt 0:06:16]} (27... Na7 $142) 28. gxh5 $16 {[%emt 0:04:56]} gxh5 {[%emt 0:00:04]} 29. Rf2 {[%emt 0:00:43]} Rg8+ {[%emt 0:02:10]} 30. Rg2 {[%emt 0:01:09]} Na7 {[%emt 0:01:24]} 31. Raa2 {[%emt 0:04:00]} h4 {[%emt 0:13:54] [#]} 32. Rxg8 $1 {[%emt 0:00:47]} Rxg8+ {[%emt 0:00:04]} 33. Rg2 {[%emt 0:00:06]} Bg5 {[%emt 0:05:25]} 34. h3 {[%emt 0:02:06]} Rg7 {[%emt 0:01:50]} 35. Kh1 {[%emt 0:01:50]} Nc8 {[%emt 0:00:40]} 36. Nd2 {[%emt 0:02:18] White has more active pieces.} (36. Rg4 {with more complications.} Ne7 37. a6 Nc8 38. Nd2) 36... Bf6 {[%emt 0:02:11]} 37. Rxg7+ {[%emt 0:00:50]} (37. a6 {keeps more tension.} Nb6 38. Bb5 Rf7 39. Rg8) 37... Bxg7 {[%emt 0:00:04][%mdl 4096] Endgame KBN-KBN} 38. Nf3 {[%emt 0:00:42]} Bf6 {[%emt 0:00:08]} 39. Ne1 {[%emt 0:06:59]} Bg5 {[%emt 0:01:49]} 40. Nf3 {[%emt 0:00:00]} Bf6 {[%emt 0:00:00]} 41. Ne1 {[%emt 0:06:24]} Bg5 $1 {[%emt 0:00:10]} 42. Bb5 {[%emt 0:00:16]} (42. Kg2 $16) 42... Ne7 $1 $11 {[%emt 0:05:43]} 43. Kg2 {[%emt 0:04:18] Strongly threatening Nd3.} Ng6 {[%emt 0:01:52]} (43... Ng8 $1 $11 {remains equal.}) 44. Nd3 $16 {[%emt 0:04:31][%cal Og2f3]} Nf4+ {[%emt 0:09:37]} 45. Nxf4 {[%emt 0:00:06]} Bxf4 {[%emt 0:00:06] KB-KB} 46. Bd3 {[%emt 0:00:46] Threatens to win with Kf3.} Bg5 {[%emt 0:02:30]} 47. a6 {[%emt 0:01:02]} Bd8 {[%emt 0:00:24]} 48. Kf3 {[%emt 0:00:14]} Kb6 {[%emt 0:00:05]} 49. Kg4 {[%emt 0:00:17]} Ka7 {[%emt 0:00:08]} 50. Kf5 {[%emt 0:00:13]} Bb6 {[%emt 0:00:08]} 51. Kf6 {[%emt 0:00:51]} Kb8 {[%emt 0:00:16]} 52. Ke7 {[%emt 0:01:35]} Bc5 {[%emt 0:00:06]} 53. Kf6 {[%emt 0:01:46] Hoping for Kg5.} Bb6 $1 {[%emt 0:00:10]} 54. Kf5 {[%emt 0:00:28]} (54. Ke6 $5 {[%cal Re6d6]} Bc5 55. Kf5 $16) 54... Ka7 {[%emt 0:00:11]} 55. Ke6 {[%emt 0:01:07]} Bc5 {[%emt 0:00:10]} 56. Kd7 {[%emt 0:00:24]} Kb6 {[%emt 0:01:25]} 57. Kc8 {[%emt 0:02:08] Kb8 would kill now.} Ka7 {[%emt 0:00:05]} 58. Kc7 {[%emt 0:00:39]} Ka8 {[%emt 0:00:07]} 59. Kd7 {[%emt 0:00:08]} Kb8 {[%emt 0:00:18]} 60. Ke6 {[%emt 0:00:09]} ({Better is} 60. Bf1) 60... Ka7 {[%emt 0:00:17]} 61. Kf5 {[%emt 0:00:31] Threatening mate with Kg4.} Bb6 {[%emt 0:00:07]} 62. Kg4 {[%emt 0:00:15] Black defended with fortune.   Weighted Error Value: White=0.19 (very precise) /Black=0.10 (very precise)} (62. Kg6 $16) 1/2-1/2

[Event "European Women-ch 2023"]
[Site "Petrovac"]
[Date "2023.03.23"]
[Round "6.14"]
[White "Maltsevskaya, Aleksandra"]
[Black "Zhukova, Natalia"]
[Result "1-0"]
[ECO "C78"]
[WhiteElo "2388"]
[BlackElo "2322"]
[Annotator "TA"]
[PlyCount "79"]
[EventDate "2023.03.15"]
[EventType "swiss"]
[EventCountry "MNE"]
[SourceTitle "playchess.com"]
[Source "ChessBase"]
[SourceQuality "1"]
[TimeControl "40/5400+30:1800+30"]

{[%evp 16,79,-25,-28,0,0,12,0,0,14,19,0,-1,-90,0,0,0,0,22,29,31,-14,-14,-12,-3,-33,0,-173,-182,-189,-198,-177,-185,-179,-170,-204,-208,-215,-212,-241,-148,-224,-222,-238,-251,-397,-378,-498,-425,-414,-408,-462,-462,-411,0,0,0,0,0,0,0,0,0,0,29985,29986]} 1. e4 {[%emt 0:00:30]} e5 {[%emt 0:00:30]} 2. Nf3 {[%emt 0:00:30]} Nc6 {[%emt 0:00:30]} 3. Bb5 {[%emt 0:00:30][%cal Bf1b5,Bb5a4,Ba4b3][%mdl 32]} a6 {[%emt 0:00:30]} 4. Ba4 {[%emt 0:00:30]} Nf6 {[%emt 0:00:30]} 5. O-O {[%emt 0:00:30]} b5 {[%emt 0:00:30]} 6. Bb3 {[%emt 0:00:30]} Bb7 {[%emt 0:00:30]} 7. Ng5 {[%emt 0:00:30]} d5 {[%emt 0:00:30]} 8. exd5 {[%emt 0:00:30]} Nd4 {[%emt 0:00:30]} 9. Re1 Bd6 (9... Bxd5 10. Rxe5+ Be7 11. Nc3 Bxb3 12. axb3 $16) 10. d3 {[%emt 0:27:23]} h6 {[%emt 0:42:23]} (10... Bxd5 11. Bxd5 Nxd5 12. c3 $16 (12. Qh5 Qd7 $15)) 11. Ne4 {[%emt 0:02:05]} Nxb3 {[%emt 0:03:10] The position is equal.} (11... Bxd5 $2 12. Nxf6+ Qxf6 13. Bxd5 $18) 12. axb3 {[%emt 0:00:51]} Bxd5 {[%emt 0:03:02]} 13. Nxf6+ {[%emt 0:29:58]} (13. Nbc3 $5 {[%cal Re4f6]} Bb7 14. Qf3 Nxe4 15. Nxe4 $11) 13... Qxf6 {[%emt 0:01:20]} 14. d4 {[%emt 0:00:07]} (14. Nc3 $11 {remains equal.} Bb7 15. Ne4) 14... O-O-O {[%emt 0:17:51]} (14... Qg6 $17 {[%csl Gd5][%cal Rg6g2]} 15. g3 Bb7) 15. c4 $11 {[%emt 0:06:37]} (15. Rxa6 $2 exd4 16. h3 Bb7 $19) (15. Nc3 Bb7 $15) 15... bxc4 $40 {[%emt 0:02:48][%mdl 128] Black is up to no good.} 16. Nc3 {[%emt 0:00:45]} Bb7 {[%emt 0:00:59] A strong pair of Bishops.} 17. d5 {[%emt 0:04:31]} cxb3 {[%emt 0:03:39]} 18. Qxb3 {[%emt 0:00:05]} Bc5 {[%emt 0:03:47]} 19. Be3 {[%emt 0:00:07]} Bd4 {[%emt 0:03:11]} 20. Rac1 {[%emt 0:02:23]} (20. Rad1 {simplifies} Qb6 21. Qxb6 Bxb6 22. Bxb6 cxb6 23. Rxe5 Rhe8 24. Rf5) 20... Kb8 {[%emt 0:02:58]} (20... Qd6 $5) 21. Bxd4 $2 {[%emt 0:02:41]} (21. Qc4 $1 $11 {and White has nothing to worry.}) 21... exd4 $19 {[%emt 0:00:04]} 22. Na4 {[%emt 0:00:05] Rc6 would be deadly.} Rxd5 {[%emt 0:03:40] ...d3 is the strong threat.} (22... Ka8 $2 23. Rxc7 Rb8 24. Ree7 $18) 23. Nc5 {[%emt 0:00:27][%csl Gc5][%cal Rb3b7] [#]} Qc6 {[%emt 0:00:08]} (23... Qb6 24. Qxd5 Bxd5 25. Nd7+ Ka7 26. Nxb6 Kxb6 27. Red1 $14) 24. Nxb7 {[%emt 0:04:42]} Qxb7 {[%emt 0:00:10]} 25. Qd3 {[%emt 0:00:08]} Rhd8 {[%emt 0:01:41]} (25... Qxb2 $2 26. Rb1 $18 (26. Qxa6 Rd6 $16) (26. Qxa6 Rd6 $16)) (25... Rg5 26. g3 $17) 26. h4 {[%emt 0:00:51]} R8d7 {[%emt 0:03:43]} (26... Qxb2 $2 27. Rb1 $18 (27. Qxa6 R5d6 $11) (27. Qxa6 R5d6 $11)) 27. Ra1 {[%emt 0:03:34]} Rb5 {[%emt 0:03:35]} (27... Qxb2 28. Qxa6 Qb7 29. Rab1 c6 30. Re8+ Kc7 31. Qxb7+ Kd6 32. Qb4+ Rc5 33. Rc1) 28. Re4 {[%emt 0:04:32]} (28. Ra4 $17) 28... c5 {[%emt 0:00:27][%cal Bc7c5,Bc5c4][%mdl 32]} (28... Rxb2 29. Rxa6 Rd8 30. Ra3 $15) 29. Re5 {[%emt 0:02:55]} Ka7 {[%emt 0:01:47]} (29... Rxb2 30. Rxa6 Rb3 31. Qf5 $16) 30. Rc1 {[%emt 0:06:08]} (30. Re2 $142) 30... c4 {[%emt 0:00:28][%mdl 64] [#] Discovered Attack} (30... Rxb2 $2 {too greedy.} 31. Rexc5 Rb3 32. Qd2 $19) 31. Qg3 {[%emt 0:00:26]} Rxe5 {[%emt 0:00:27]} (31... Rxb2 $2 32. Rxc4 Qb8 33. Rc1 $19) 32. Qxe5 {[%emt 0:00:06][%mdl 4096] Endgame KQR-KQR} Qb5 {[%emt 0:00:39]} (32... Qxb2 $2 {is the wrong capture.} 33. Qc5+ Qb6 34. Qxc4 $19) 33. Qxg7 {[%emt 0:00:53]} d3 {[%emt 0:00:30]} (33... Qxb2 $2 {loses.} 34. Rxc4 Qb1+ 35. Kh2 $19) 34. Rd1 {[%emt 0:00:33]} d2 $2 {[%emt 0:00:32]} (34... Qh5 $19 35. Rd2 Qxh4) 35. Qxh6 $11 {[%emt 0:00:28]} Qxb2 {[%emt 0:00:05]} 36. Qe3+ {[%emt 0:00:05]} Kb7 {[%emt 0:00:32] And now ...Qd4 would win.} 37. Qe4+ {[%emt 0:00:14]} Kb6 {[%emt 0:00:27]} 38. Qxc4 {[%emt 0:00:20]} a5 {[%emt 0:00:52]} 39. Qc8 {[%emt 0:01:26]} a4 $2 {[%emt 0:00:33][%mdl 8192]} 40. Qxd7 {[%emt 0:00:00] Quite a comeback for White.   Weighted Error Value: White=0.31/Black=0.38} 1-0